bitfinex/quotes_SOLUSD_20260108
["timestamp","ask_amount","ask_price","bid_price","bid_amount"]
[1767847936358,0.1,137.89,137.87,4.03910509]
[1767847937457,0.1,137.89,137.87,3.97910523]
[1767847938539,0.1,137.89,137.86,16.63351279]
[1767847939560,0.1,137.89,137.86,17.29910509]
[1767847940661,0.1,137.89,137.86,24.55279533]
[1767847941239,0.1,137.89,137.87,0.6655923]
[1767847941554,0.1,137.89,137.87,13.9055923]
[1767847945862,0.1,137.89,137.87,17.27910509]
[1767847946363,0.1,137.89,137.87,13.9055923]
[1767847946564,0.1,137.89,137.87,17.27910509]
[1767847947764,0.1,137.89,137.88,0.6655923]
[1767847947969,0.1,137.9,137.88,11.23144689]
[1767847948269,0.1,137.9,137.89,16.61351279]
[1767847948742,0.1,137.9,137.8,6.96443384]
[1767847948743,0.68573346,137.89,137.74,47.04696683]
[1767847948951,0.68573346,137.86,137.76,3.37351279]
[1767847949148,0.68573346,137.85,137.81,3.37351279]
[1767847949347,0.9700566,137.84,137.8,13.24]
[1767847949640,0.9700566,137.84,137.79,3.37351279]
[1767847949641,0.68573346,137.83,137.79,13.24]
[1767847949942,7.94107389,137.83,137.79,13.9055923]
[1767847950345,0.68573346,137.82,137.79,13.24]
[1767847951057,0.68573346,137.8,137.77,13.24]
[1767847951962,11.31632948,137.8,137.77,13.24]
[1767847952866,7.94471066,137.81,137.77,13.92814315]
[1767847953069,10.62972929,137.82,137.78,0.68814315]
[1767847953248,7.2562165,137.82,137.78,0.68814315]
[1767847955154,11.3179668,137.82,137.78,0.68814315]
[1767847956671,11.3179668,137.82,137.78,13.92814315]
[1767847959379,0.68823751,137.81,137.78,13.92814315]
[1767847960580,7.94472691,137.81,137.78,13.92814315]
[1767847960873,7.2564894,137.81,137.78,0.68814315]
[1767847961057,7.2564894,137.81,137.78,13.92814315]
[1767847961653,7.94472691,137.81,137.78,13.94814315]
[1767847962866,7.94412198,137.82,137.78,13.94814315]
[1767847963058,11.31763477,137.82,137.78,13.94814315]
[1767847963570,4.0617503,137.81,137.78,13.26]
[1767847963771,0.68823751,137.8,137.78,13.26]
[1767847963977,0.68823751,137.79,137.78,13.26]
[1767847964482,4.0617503,137.8,137.78,13.26]
[1767847965182,11.31865445,137.8,137.78,13.26]
[1767847965554,0.68823751,137.8,137.78,13.26]
[1767847966782,11.31831108,137.81,137.78,13.26]
[1767847966971,7.94479829,137.81,137.78,13.26]
[1767847968782,11.31831108,137.81,137.78,13.26]
[1767847969181,0.68823751,137.8,137.78,13.26]
[1767847969486,4.0617503,137.79,137.77,13.26]
[1767847970179,7.9459438,137.79,137.77,13.26]
[1767847970366,11.31945659,137.79,137.77,13.26]
[1767847971479,7.9459438,137.79,137.77,13.26]
[1767847973189,7.25770629,137.79,137.77,13.26]
[1767847975388,7.945323,137.8,137.77,13.26]
[1767847975975,7.945323,137.8,137.77,13.94814315]
[1767847978286,0.68823751,137.81,137.78,0.68814315]
[1767847978667,11.60213697,137.82,137.78,13.94814315]
[1767847979474,7.94374192,137.83,137.79,0.68814315]
[1767847979783,7.94374192,137.83,137.8,0.68814315]
[1767847979983,0.68823751,137.83,137.8,0.68814315]
[1767847980193,10.62852084,137.84,137.8,0.68814315]
[1767847980194,11.31675835,137.84,137.8,0.68814315]
[1767847981288,103.97256065,137.86,137.81,0.68814315]
[1767847981470,7.94220451,137.86,137.83,0.68814315]
[1767847981794,11.3157173,137.86,137.83,13.94814315]
[1767847982110,4.0617503,137.85,137.83,13.26]
[1767847984166,7.25478816,137.84,137.83,13.26]
[1767847984897,7.92935407,137.84,137.81,0.66142559]
[1767847985103,0.67456591,137.83,137.79,0.66142559]
[1767847985667,0.67456591,137.83,137.8,0.66142559]
[1767847986094,10.62830095,137.84,137.8,0.66142559]
[1767847986095,11.30286686,137.84,137.8,0.66142559]
[1767847986676,7.92935407,137.84,137.8,0.66142559]
[1767847986893,11.30286686,137.84,137.8,0.66142559]
[1767847989372,7.92935407,137.84,137.8,0.66142559]
[1767847989570,11.30286686,137.84,137.8,0.66142559]
[1767847990491,10.08852929,137.84,137.8,0.66142559]
[1767847990677,0.67456591,137.83,137.8,0.66142559]
[1767847990996,10.08966892,137.82,137.78,0.66142559]
[1767847991988,0.67456591,137.82,137.78,7.919372]
[1767847992408,7.93042623,137.82,137.78,0.66142559]
[1767847995102,10.08960145,137.82,137.78,0.66142559]
[1767847998506,0.67456591,137.78,137.7,7.99371616]
[1767847998802,2.15917522,137.71,137.67,0.66142559]
[1767847998999,5.43223507,137.7,137.67,0.66142559]
[1767847999200,2.15917522,137.71,137.67,0.66142559]
[1767847999405,5.42621258,137.7,137.67,0.66142559]
[1767847999616,2.15917522,137.71,137.67,0.66142559]
[1767847999906,5.42621226,137.7,137.68,0.66142559]
[1767848000108,2.15917522,137.71,137.68,0.66142559]
[1767848000298,0.67456591,137.7,137.65,0.2]
[1767848000500,5.42149413,137.69,137.66,0.66142559]
[1767848000690,5.42149413,137.69,137.65,0.2]
[1767848000691,5.42149413,137.68,137.65,0.2]
[1767848001007,5.42149413,137.68,137.65,0.86142559]
[1767848001889,5.42149413,137.68,137.65,8.12598678]
[1767848002200,0.67456591,137.7,137.66,0.66142559]
[1767848003803,2.83374113,137.7,137.66,0.66142559]
[1767848004791,2.15917522,137.72,137.67,0.66142559]
[1767848005008,0.67456591,137.73,137.67,0.66142559]
[1767848005009,10.09435503,137.73,137.69,0.66142559]
[1767848006992,2.15917522,137.72,137.69,0.66142559]
[1767848008509,2.83374113,137.71,137.67,7.92512701]
[1767848008891,2.83374113,137.71,137.68,0.66142559]
[1767848012317,0.67456591,137.71,137.68,0.66142559]
[1767848012813,2.83374113,137.71,137.68,0.66142559]
[1767848014412,7.95709372,137.73,137.69,0.67599471]
[1767848014617,10.11626894,137.73,137.69,0.67599471]
[1767848015211,2.15917522,137.72,137.69,0.67599471]
[1767848019425,7.95709372,137.73,137.69,0.67599471]
[1767848019627,2.15917522,137.72,137.69,0.67599471]
[1767848020130,2.85546391,137.71,137.67,0.67599471]
[1767848020506,2.85546391,137.71,137.67,7.93967528]
[1767848020724,10.11710125,137.71,137.67,0.67599471]
[1767848021926,0.69628869,137.71,137.68,0.67599471]
[1767848024209,2.15917522,137.72,137.68,7.93918102]
[1767848024406,2.15917522,137.72,137.69,0.67599471]
[1767848024813,10.11622522,137.73,137.69,0.67599471]
[1767848025033,2.85546391,137.73,137.69,0.67599471]
[1767848025532,0.69628869,137.73,137.69,0.67599471]
[1767848025711,7.95689227,137.73,137.69,0.67599471]
[1767848026120,10.11606749,137.73,137.69,0.67599471]
[1767848026322,10.11608821,137.73,137.69,0.67599471]
[1767848029827,0.69628869,137.72,137.69,0.67599471]
[1767848030032,2.85546391,137.72,137.69,0.67599471]
[1767848030410,10.11683275,137.72,137.68,0.67599471]
[1767848033335,0.69628869,137.72,137.69,0.67599471]
[1767848034653,10.11622639,137.73,137.69,0.67599471]
[1767848034848,5.39757735,137.72,137.69,0.67599471]
[1767848035156,10.11622639,137.73,137.69,0.67599471]
[1767848036142,5.40077445,137.72,137.69,0.67599471]
[1767848036349,10.11622639,137.73,137.69,0.67599471]
[1767848036524,5.40374479,137.72,137.69,0.67599471]
[1767848036726,10.11622639,137.73,137.69,0.67599471]
[1767848036926,5.4037434,137.72,137.69,0.67599471]
[1767848037129,10.11622639,137.73,137.69,0.67599471]
[1767848037324,5.40708591,137.72,137.69,0.67599471]
[1767848037530,5.40708591,137.71,137.69,0.67599471]
[1767848037730,10.11622639,137.73,137.69,0.67599471]
[1767848037929,5.40708454,137.72,137.69,0.67599471]
[1767848038141,5.40708454,137.71,137.69,0.67599471]
[1767848038344,10.11622639,137.73,137.69,0.67599471]
[1767848038544,5.4105612,137.72,137.69,0.67599471]
[1767848038741,5.4105612,137.71,137.69,0.67599471]
[1767848038928,10.11622639,137.73,137.69,0.67599471]
[1767848039128,5.41056398,137.72,137.69,0.67599471]
[1767848039345,5.41056398,137.71,137.69,0.67599471]
[1767848039531,10.11622639,137.73,137.69,0.67599471]
[1767848039730,5.41455719,137.72,137.69,0.67599471]
[1767848039946,5.41455719,137.71,137.69,0.67599471]
[1767848040142,10.11622639,137.73,137.69,0.67599471]
[1767848040345,5.41845031,137.72,137.69,0.67599471]
[1767848040525,5.41845031,137.71,137.69,0.67599471]
[1767848040724,5.41845031,137.7,137.69,0.67599471]
[1767848044237,5.41845031,137.7,137.69,7.93868626]
[1767848045757,5.41845031,137.7,137.69,0.67599471]
[1767848045950,6.12278174,137.7,137.67,0.7170467]
[1767848046150,5.41845031,137.69,137.67,0.7170467]
[1767848046329,5.41845031,137.68,137.67,0.7170467]
[1767848046528,5.38845029,137.68,137.67,0.7170467]
[1767848046943,5.38845029,137.68,137.67,7.98059456]
[1767848048253,0.70433143,137.71,137.67,7.26354786]
[1767848048432,0.70433143,137.71,137.68,0.7170467]
[1767848048433,0.70433143,137.7,137.68,0.7170467]
[1767848048633,4.89947649,137.71,137.68,0.7170467]
[1767848049457,4.89947649,137.7,137.68,0.7170467]
[1767848052257,4.89947649,137.7,137.68,7.98026537]
[1767848052463,7.96467891,137.74,137.69,0.7170467]
[1767848052653,4.89956297,137.73,137.69,0.7170467]
[1767848052858,4.89956297,137.72,137.69,0.7170467]
[1767848053059,4.89956297,137.71,137.69,0.7170467]
[1767848053243,0.70433143,137.73,137.69,0.7170467]
[1767848053444,4.89949875,137.72,137.69,0.7170467]
[1767848054455,0.70433143,137.71,137.67,24.61909152]
[1767848054653,5.60383018,137.71,137.67,21.24065883]
[1767848054852,5.60383018,137.71,137.68,0.7170467]
[1767848058553,4.89949875,137.71,137.69,0.7170467]
[1767848060243,5.44427849,137.7,137.69,0.7170467]
[1767848060444,5.41427847,137.7,137.69,0.7170467]
[1767848060750,6.1186099,137.7,137.67,21.24057379]
[1767848061057,0.70433143,137.7,137.67,21.24057379]
[1767848061560,5.60389699,137.7,137.67,21.24057379]
[1767848061863,0.70433143,137.7,137.67,21.24057379]
[1767848062062,0.70433143,137.7,137.67,13.9770467]
[1767848062267,12.86631446,137.7,137.67,0.7170467]
[1767848062465,7.96663458,137.7,137.67,0.7170467]
[1767848062662,4.89991568,137.69,137.67,0.7170467]
[1767848062867,4.86991568,137.69,137.67,0.7170467]
[1767848064839,5.57424711,137.69,137.66,0.7170467]
[1767848067563,5.57424711,137.69,137.66,7.98127746]
[1767848067759,0.70433143,137.69,137.66,7.98127746]
[1767848067946,0.70433143,137.69,137.65,17.55547939]
[1767848068144,0.70433143,137.69,137.65,24.8201441]
[1767848069566,0.70433143,137.69,137.65,8.18171141]
[1767848069961,0.70433143,137.69,137.66,0.7170467]
[1767848071075,0.70433143,137.69,137.66,7.98120344]
[1767848071260,0.70433143,137.69,137.66,11.35963613]
[1767848072370,5.44306291,137.68,137.66,7.98120344]
[1767848072675,0.70433143,137.69,137.66,11.35963613]
[1767848072857,5.44306291,137.68,137.66,11.35963613]
[1767848073059,0.70433143,137.69,137.66,11.35963613]
[1767848073265,5.44306431,137.68,137.66,11.35963613]
[1767848073562,0.70433143,137.69,137.66,11.35963613]
[1767848073765,5.44282171,137.68,137.66,11.35963613]
[1767848074062,0.70433143,137.69,137.66,11.35963613]
[1767848074262,5.44282171,137.68,137.66,7.98120344]
[1767848074469,0.70433143,137.69,137.66,7.98120344]
[1767848074669,6.13512818,137.68,137.65,4.24292403]
[1767848074856,0.69251743,137.68,137.65,4.24292403]
[1767848075054,5.44294031,137.67,137.65,4.24292403]
[1767848075257,0.69251743,137.68,137.65,0.86449134]
[1767848075459,5.44223892,137.67,137.65,0.86449134]
[1767848075661,0.69251743,137.68,137.65,0.2]
[1767848075975,6.13495593,137.67,137.65,0.2]
[1767848076176,0.69251743,137.67,137.65,0.2]
[1767848076566,5.59020107,137.67,137.65,0.2]
[1767848077077,5.44185413,137.66,137.65,0.2]
[1767848077662,0.69251743,137.67,137.65,0.2]
[1767848077961,5.58933646,137.67,137.65,0.2]
[1767848079376,0.69251743,137.67,137.65,0.2]
[1767848080180,5.58642136,137.67,137.65,0.2]
[1767848080558,0.69251743,137.66,137.64,0.2]
[1767848080771,0.6176561,137.66,137.64,0.2]
[1767848080958,7.26376538,137.67,137.64,0.2]
[1767848081355,7.23376539,137.67,137.64,0.2]
[1767848081782,10.61219808,137.67,137.64,0.2]
[1767848082980,0.44522288,137.66,137.64,0.2]
[1767848084379,0.099,137.65,137.64,0.2]
[1767848084586,0.099,137.65,137.63,0.2]
[1767848086269,7.50956798,137.66,137.63,0.2]
[1767848094767,7.50956798,137.66,137.63,0.86449134]
[1767848095479,10.6422992,137.67,137.64,0.66449134]
[1767848095675,10.88605985,137.67,137.63,0.86449134]
[1767848095873,0.1004476,137.66,137.63,0.86449134]
[1767848097394,3.42365557,137.66,137.62,0.66449134]
[1767848097573,3.37843269,137.66,137.62,0.66449134]
[1767848097778,7.26461176,137.66,137.62,0.66449134]
[1767848099391,10.68826733,137.66,137.62,0.66449134]
[1767848100376,13.73707137,137.65,137.62,0.66449134]
[1767848100575,3.42365557,137.65,137.62,0.66449134]
[1767848100772,0.04522288,137.65,137.62,0.66449134]
[1767848100978,0.04522288,137.64,137.61,0.66449134]
[1767848101371,3.42365557,137.65,137.61,0.66449134]
[1767848102379,0.04522288,137.66,137.62,0.66906392]
[1767848102702,4.93001952,137.66,137.62,0.66906392]
[1767848104482,15.57279946,137.66,137.62,0.66906392]
[1767848104684,10.68800282,137.66,137.62,0.66906392]
[1767848105481,10.31660091,137.65,137.62,0.66906392]
[1767848105677,0.04522288,137.64,137.61,0.66548197]
[1767848105999,3.42365557,137.64,137.61,0.66548197]
[1767848106802,10.6890089,137.64,137.61,0.66548197]
[1767848108104,0.04522288,137.63,137.59,0.66548197]
[1767848111900,0.04522288,137.64,137.61,0.66548197]
[1767848114086,14.65115092,137.64,137.6,0.66548197]
[1767848114292,0.04522288,137.63,137.6,0.66548197]
[1767848114504,4.93654121,137.63,137.6,0.66548197]
[1767848115010,4.89131833,137.63,137.6,0.66548197]
[1767848115389,4.89131833,137.63,137.61,0.66548197]
[1767848115598,0.18738445,137.66,137.62,0.66548197]
[1767848115911,5.43497016,137.65,137.62,0.66548197]
[1767848116110,5.48019304,137.64,137.61,0.66548197]
[1767848116317,4.89207479,137.64,137.61,0.66548197]
[1767848119195,0.04522288,137.63,137.6,0.66548197]
[1767848119398,10.37723857,137.63,137.6,0.66548197]
[1767848119606,0.04522288,137.64,137.61,0.66548197]
[1767848119923,5.44001625,137.63,137.61,0.66548197]
[1767848120212,0.04522288,137.64,137.61,0.66548197]
[1767848120398,5.44103831,137.63,137.61,0.66548197]
[1767848120599,7.31066519,137.64,137.61,0.66548197]
[1767848120814,5.44104003,137.63,137.61,0.66548197]
[1767848121015,7.31066519,137.64,137.61,0.66548197]
[1767848121212,10.33886141,137.63,137.6,0.66548197]
[1767848121414,7.31066519,137.64,137.6,0.66548197]
[1767848121601,10.3396637,137.63,137.6,0.66548197]
[1767848121803,7.31066519,137.64,137.6,0.66548197]
[1767848122003,10.3396623,137.63,137.6,0.66548197]
[1767848122203,9.4757366,137.64,137.6,0.66548197]
[1767848122405,10.34049879,137.63,137.6,0.66548197]
[1767848122606,9.4757366,137.64,137.6,0.66548197]
[1767848122908,10.3404974,137.63,137.6,0.66548197]
[1767848123109,9.4757366,137.64,137.6,0.66548197]
[1767848123300,10.34100269,137.63,137.6,0.66548197]
[1767848123604,9.4757366,137.64,137.6,0.66548197]
[1767848123803,10.34093811,137.63,137.6,0.66548197]
[1767848124001,9.4757366,137.64,137.6,0.66548197]
[1767848124204,4.89834246,137.63,137.6,0.66548197]
[1767848124409,10.34123419,137.63,137.6,0.66548197]
[1767848124604,9.4757366,137.64,137.6,0.66548197]
[1767848124918,10.34150237,137.63,137.6,0.66548197]
[1767848125112,10.34220622,137.62,137.6,0.66548197]
[1767848125415,2.49461743,137.64,137.6,0.66548197]
[1767848125616,10.34203659,137.63,137.6,0.66548197]
[1767848125817,2.49461743,137.64,137.6,0.66548197]
[1767848126017,10.34203125,137.63,137.6,0.66548197]
[1767848126212,2.49461743,137.64,137.6,0.66548197]
[1767848126399,10.34191499,137.63,137.6,0.66548197]
[1767848126601,2.49461743,137.64,137.6,0.66548197]
[1767848126815,10.34191639,137.63,137.6,0.66548197]
[1767848127004,9.76011025,137.64,137.6,0.66548197]
[1767848127201,10.34191639,137.63,137.6,0.66548197]
[1767848127402,9.76011025,137.64,137.6,0.66548197]
[1767848127609,10.34190963,137.63,137.6,0.66548197]
[1767848127900,9.76011025,137.64,137.6,0.66548197]
[1767848128100,10.34190963,137.63,137.6,0.66548197]
[1767848128295,9.76011025,137.64,137.6,0.66548197]
[1767848128506,10.34200209,137.63,137.6,0.66548197]
[1767848128708,9.76011025,137.64,137.6,0.66548197]
[1767848128915,10.3420035,137.63,137.6,0.66548197]
[1767848129095,9.76011025,137.64,137.6,0.66548197]
[1767848129298,10.34231525,137.63,137.6,0.66548197]
[1767848129493,9.76011025,137.64,137.6,0.66548197]
[1767848129717,10.34219933,137.63,137.6,0.66548197]
[1767848129911,9.76011025,137.64,137.6,0.66548197]
[1767848130113,10.34220074,137.63,137.6,0.66548197]
[1767848130305,9.76011025,137.64,137.6,0.66548197]
[1767848130519,19.81831631,137.63,137.6,0.66548197]
[1767848130719,9.47626135,137.63,137.6,0.66548197]
[1767848131527,2.21029429,137.63,137.6,0.66548197]
[1767848131728,7.10912971,137.63,137.6,0.66548197]
[1767848134911,4.89883542,137.63,137.59,0.68063925]
[1767848135330,5.4442267,137.62,137.59,0.68063925]
[1767848135532,9.76023319,137.64,137.59,0.68063925]
[1767848135738,9.76023319,137.64,137.58,7.46817905]
[1767848135739,0.04522288,137.62,137.58,10.31388971]
[1767848136024,4.8999199,137.62,137.59,0.68063925]
[1767848136244,0.04522288,137.61,137.58,8.1488183]
[1767848136425,4.94519639,137.62,137.59,0.68063925]
[1767848137213,12.21158715,137.62,137.59,0.68063925]
[1767848137430,7.31161364,137.62,137.58,0.88063925]
[1767848137732,10.38945281,137.61,137.58,0.2]
[1767848138031,0.04522288,137.61,137.58,0.2]
[1767848138209,4.94519846,137.61,137.58,0.2]
[1767848138639,12.21231521,137.61,137.58,0.2]
[1767848138943,0.04522288,137.6,137.58,0.2]
[1767848139119,10.38972296,137.6,137.58,0.2]
[1767848139315,0.04522288,137.6,137.58,0.2]
[1767848139533,4.89920396,137.6,137.58,0.2]
[1767848139729,18.16666729,137.62,137.58,0.2]
[1767848139730,0.04522288,137.62,137.59,0.68063925]
[1767848140018,4.89867712,137.62,137.59,0.68063925]
[1767848140422,7.26602952,137.63,137.59,0.68063925]
[1767848140636,5.44286575,137.62,137.59,0.68063925]
[1767848140809,7.3112524,137.63,137.59,0.68063925]
[1767848141013,5.44286779,137.62,137.59,0.68063925]
[1767848141232,7.3112524,137.63,137.59,0.68063925]
[1767848141434,5.4433051,137.62,137.59,0.68063925]
[1767848141639,7.3112524,137.63,137.59,0.68063925]
[1767848141810,5.4433051,137.62,137.59,0.68063925]
[1767848142017,7.3112524,137.63,137.59,0.68063925]
[1767848142217,5.4433051,137.62,137.59,0.68063925]
[1767848142427,9.47632381,137.63,137.59,0.68063925]
[1767848142627,5.44380745,137.62,137.59,0.68063925]
[1767848142829,9.47632381,137.63,137.59,0.68063925]
[1767848143036,5.44380745,137.62,137.59,0.68063925]
[1767848143238,9.47632381,137.63,137.59,0.68063925]
[1767848143534,10.38953389,137.62,137.59,0.68063925]
[1767848143732,10.34489037,137.61,137.58,0.88063925]
[1767848144031,2.21029429,137.62,137.58,0.88063925]
[1767848144245,5.4449564,137.61,137.58,0.88063925]
[1767848144547,2.21029429,137.62,137.58,0.88063925]
[1767848144843,5.4450834,137.61,137.58,0.88063925]
[1767848145137,2.21029429,137.62,137.58,0.88063925]
[1767848145329,5.44469199,137.61,137.58,0.88063925]
[1767848145644,10.39027287,137.6,137.58,0.2]
[1767848145822,0.04522288,137.6,137.58,0.2]
[1767848146334,4.9457433,137.6,137.58,0.2]
[1767848147255,4.90052042,137.6,137.58,0.2]
[1767848147620,12.16806248,137.6,137.58,0.2]
[1767848147815,7.26754206,137.6,137.58,0.2]
[1767848150047,7.31276494,137.6,137.58,0.2]
[1767848150237,9.47783635,137.6,137.58,0.2]
[1767848150432,0.04522288,137.59,137.56,13.65728114]
[1767848150639,4.94406454,137.59,137.56,13.65728114]
[1767848151540,7.10913595,137.59,137.56,13.65728114]
[1767848152120,14.3774729,137.59,137.56,13.65728114]
[1767848152328,9.47863124,137.59,137.56,13.65728114]
[1767848153442,9.47863124,137.59,137.56,14.33792039]
[1767848154342,0.04522288,137.59,137.56,14.33792039]
[1767848154543,7.05984884,137.6,137.56,14.33792039]
[1767848154729,5.43864038,137.59,137.56,14.33792039]
[1767848154928,2.16507141,137.6,137.56,14.33792039]
[1767848155134,5.43864178,137.59,137.56,14.33792039]
[1767848155335,2.16507141,137.6,137.57,0.68063925]
[1767848155537,7.05909532,137.6,137.57,0.68063925]
[1767848155940,12.16165569,137.6,137.57,0.68063925]
[1767848156246,4.89402391,137.59,137.57,0.68063925]
[1767848158251,9.43270319,137.6,137.57,0.68063925]
[1767848160853,9.43270319,137.6,137.56,14.33792039]
[1767848161756,9.43270319,137.6,137.57,0.68063925]
[1767848162353,7.26763178,137.6,137.57,0.68063925]
[1767848162545,9.43270319,137.6,137.57,0.68063925]
[1767848164256,9.43270319,137.6,137.56,13.65728114]
[1767848164558,9.43270319,137.6,137.56,14.35909915]
[1767848165539,2.16507141,137.58,137.56,13.65728114]
[1767848166854,2.44939455,137.59,137.56,13.65728114]
[1767848167356,7.26849832,137.58,137.56,13.65728114]
[1767848168449,9.43356973,137.58,137.56,13.65728114]
[1767848168762,7.26849832,137.58,137.55,0.71515327]
[1767848168967,25.43974414,137.58,137.55,0.71515327]
[1767848169262,5.43485958,137.57,137.55,0.71515327]
[1767848169448,25.43974414,137.58,137.55,0.71515327]
[1767848169852,6.11437073,137.64,137.58,0.71515327]
[1767848170068,3.78832312,137.69,137.63,2.16507141]
[1767848170356,0.69275177,137.7,137.66,2.16507141]
[1767848170562,10.12001015,137.7,137.64,2.16507141]
[1767848170737,10.12001015,137.7,137.64,15.44507141]
[1767848171154,10.12001015,137.7,137.64,22.7103642]
[1767848171766,10.12001015,137.7,137.64,15.44507141]
[1767848172062,0.28432314,137.69,137.64,15.44507141]
[1767848172258,0.69275177,137.67,137.62,2.16507141]
[1767848172444,0.69275177,137.67,137.62,9.43142235]
[1767848173051,7.95672922,137.67,137.62,9.43133467]
[1767848173879,0.69275177,137.66,137.61,15.44507141]
[1767848174566,0.69275177,137.66,137.61,16.66217067]
[1767848174953,7.95712231,137.66,137.62,3.38217067]
[1767848176647,0.69275177,137.65,137.62,3.38217067]
[1767848178048,7.95773341,137.65,137.6,20.54742289]
[1767848178248,7.95773341,137.65,137.62,3.38217067]
[1767848178460,0.69275177,137.65,137.62,3.38217067]
[1767848180270,0.69275177,137.69,137.64,3.38217067]
[1767848180572,106.38217067,137.72,137.67,3.38217067]
[1767848180573,0.69275177,137.7,137.67,3.38217067]
[1767848180768,0.97707491,137.7,137.67,3.38217067]
[1767848181072,0.69275177,137.7,137.67,3.38217067]
[1767848181254,0.97707491,137.7,137.67,3.38217067]
[1767848181457,0.69275177,137.7,137.67,3.38217067]
[1767848181859,7.26129269,137.72,137.67,3.38217067]
[1767848182064,7.26129269,137.72,137.61,20.09985693]
[1767848182065,10.29321938,137.71,137.68,3.38217067]
[1767848182266,0.69275177,137.71,137.68,3.38217067]
[1767848182448,0.69275177,137.71,137.67,3.38217067]
[1767848182654,0.69275177,137.7,137.62,18.1658685]
[1767848182873,0.69275177,137.7,137.6,3.38217067]
[1767848182874,0.69275177,137.68,137.64,3.38217067]
[1767848183851,0.69275177,137.67,137.64,3.38217067]
[1767848184057,0.69275177,137.67,137.64,2.65717067]
[1767848184252,0.69275177,137.64,137.59,4.09732394]
[1767848184656,4.07492244,137.64,137.59,0.71515327]
[1767848185268,4.07492244,137.64,137.59,11.36515136]
[1767848185269,0.97707491,137.64,137.59,11.36515136]
[1767848185452,0.97707491,137.64,137.6,0.71515327]
[1767848185874,8.24255099,137.64,137.6,4.09732394]
[1767848188663,0.69275177,137.64,137.6,4.09732394]
[1767848189464,0.69275177,137.64,137.6,11.3647551]
[1767848189663,0.69275177,137.64,137.61,4.09732394]
[1767848192490,0.28432314,137.65,137.62,0.71752281]
[1767848193070,0.94979038,137.65,137.62,0.71752281]
[1767848193386,0.94979038,137.65,137.61,3.38217067]
[1767848193591,0.94979038,137.65,137.61,4.09969348]
[1767848194285,8.21486031,137.65,137.61,4.09969348]
[1767848195271,7.54939307,137.65,137.62,0.71752281]
[1767848196089,8.21486031,137.65,137.62,0.71752281]
[1767848196486,0.28432314,137.65,137.62,0.71752281]
[1767848196684,7.92983986,137.66,137.63,0.71752281]
[1767848196886,7.26437262,137.66,137.63,0.71752281]
[1767848197498,7.26437262,137.66,137.63,4.09969348]
[1767848197800,7.92983986,137.66,137.63,0.71752281]
[1767848199097,0.66546724,137.65,137.61,4.09969348]
[1767848201093,0.66546724,137.65,137.62,0.71752281]
[1767848204799,0.66546724,137.65,137.61,4.09969348]
[1767848205092,0.66546724,137.65,137.61,3.38217067]
[1767848205504,0.66546724,137.65,137.61,4.09969348]
[1767848205904,0.66546724,137.65,137.62,0.71752281]
[1767848206097,0.66546724,137.65,137.62,4.09969348]
[1767848207791,0.66546724,137.65,137.62,0.71752281]
[1767848207992,0.66546724,137.65,137.62,4.09969348]
[1767848208703,0.66546724,137.65,137.62,0.71752281]
[1767848213209,5.5560225,137.65,137.62,0.71752281]
[1767848215391,5.43893059,137.64,137.62,0.71752281]
[1767848215702,5.5560225,137.65,137.62,0.71752281]
[1767848215703,0.66546724,137.65,137.62,0.71752281]
[1767848215887,5.43893199,137.64,137.62,0.71752281]
[1767848216088,0.66546724,137.65,137.62,0.71752281]
[1767848216392,5.43893059,137.64,137.62,0.71752281]
[1767848216702,0.66546724,137.65,137.62,0.71752281]
[1767848217002,5.43984753,137.64,137.62,0.71752281]
[1767848217186,0.66546724,137.65,137.62,0.71752281]
[1767848217387,5.44086844,137.64,137.62,0.71752281]
[1767848217610,0.66546724,137.65,137.62,0.71752281]
[1767848217783,5.44086846,137.64,137.62,0.71752281]
[1767848217987,0.66546724,137.65,137.62,0.71752281]
[1767848218187,5.44086985,137.64,137.62,0.71752281]
[1767848218389,0.66546724,137.65,137.62,0.71752281]
[1767848218694,5.44100217,137.64,137.62,0.71752281]
[1767848218896,0.66546724,137.65,137.62,0.71752281]
[1767848219088,5.44100217,137.64,137.62,0.71752281]
[1767848219290,0.66546724,137.65,137.62,0.71752281]
[1767848219511,5.44103054,137.64,137.62,0.71752281]
[1767848219804,7.93028014,137.65,137.62,0.71752281]
[1767848220012,5.44102915,137.64,137.62,0.71752281]
[1767848220199,7.93028014,137.65,137.62,0.71752281]
[1767848220391,5.44090587,137.64,137.62,0.71752281]
[1767848220583,7.93028014,137.65,137.62,0.71752281]
[1767848220784,5.44090726,137.64,137.62,0.71752281]
[1767848220989,0.66546724,137.65,137.62,0.71752281]
[1767848221202,5.44090726,137.64,137.62,0.71752281]
[1767848221403,0.66546724,137.65,137.62,0.71752281]
[1767848221708,5.44090437,137.64,137.62,0.71752281]
[1767848221914,0.66546724,137.65,137.62,0.71752281]
[1767848222206,5.44090437,137.64,137.62,0.71752281]
[1767848222404,0.66546724,137.65,137.62,0.71752281]
[1767848222612,5.4409016,137.64,137.62,0.71752281]